Cogmind - Beta 11.1 @@@ ROGUE MODE // 2022.05.31 @ 21:09:37 Player: Nix Result: Destroyed by S-10 Pest with Light Assault Rifle Performance ------------- Evolutions (1) 500 Regions Visited (2) 400 Robots Destroyed (45) 225 Value Destroyed (1112) 1112 Prototype IDs (3) 60 Alien Tech Used (0) 0 Bonus (0) 0 TOTAL SCORE: 2297 Bonus ------- None Cogmind --------- Core Integrity 0/400 Matter 280/300 Energy 125/125 System Corruption 5% Temperature Cool (0) Movement Walking (260) Ox2 Location -9/Materials Parts ------- > --- POWER (1) -------- Light Ion Engine > --- PROPULSION (2) --- Aluminum Leg Aluminum Leg > --- UTILITY (4) ------ High-capacity Storage Unit Terrain Scan Processor > --- WEAPON (2) ------- Katana > --- INVENTORY (20) --- Ion Engine Light Ion Engine Improved Ion Engine Wheel Wheel Compact Wheel High-capacity Storage Unit Small Laser Heavy Assault Rifle Improved Light Cannon Peak State ------------ > --- POWER ------------ Ion Engine > --- PROPULSION ------- Aluminum Leg Aluminum Leg > --- UTILITY ---------- High-capacity Storage Unit Terrain Scan Processor Light Armor Plating Hardened Light Armor Plating > --- WEAPON ----------- EM Pulse Gun Katana > --- INVENTORY -------- Ion Engine Light Ion Engine Light Ion Engine Improved Ion Engine Aluminum Leg Aluminum Leg Aluminum Leg Wheel Wheel Compact Wheel High-capacity Storage Unit Small Laser Beam Cannon Improved Light Cannon [Rating: 14] Favorites ----------- Power Ion Engine Engine Ion Engine Propulsion Compact Wheel Leg Aluminum Leg Wheel Compact Wheel Utility High-capacity Storage Unit Device Terrain Scanner Storage High-capacity Storage Unit Processor Terrain Scan Processor Protection Medium Armor Plating Weapon Medium Laser Energy Gun Medium Laser Energy Cannon Beam Cannon Ballistic Gun Light Assault Rifle Launcher Grenade Launcher Slashing Weapon Katana Build | -11 -10 -9 ------- Run | Scr Mat Mat Slots Evolved 2 | . . 2 Power . | . . . Propulsion . | . . . Utility 2 | . . 2 Weapon . | . . . Parts Attached 46 | 6 13 27 Power 6 | 1 2 3 Engine 6 | 1 2 3 Core . | . . . Reactor . | . . . Propulsion 11 | 2 2 7 Treads . | . . . Leg 6 | . . 6 Wheel 5 | 2 2 1 Hover . | . . . Flight . | . . . Utility 12 | 1 4 7 Device 2 | . . 2 Storage 2 | 1 1 . Processor 1 | . . 1 Hackware . | . . . Protection 7 | . 3 4 Artifact . | . . . Weapon 17 | 2 5 10 Energy Gun 8 | 1 2 5 Energy Cannon 4 | . 1 3 Ballistic Gun 1 | 1 . . Ballistic Cannon . | . . . Launcher 3 | . 2 1 Special Weapon . | . . . Impact Weapon . | . . . Slashing Weapon 1 | . . 1 Piercing Weapon . | . . . Special Melee Weapon . | . . . Unidentified Prototypes 1 | . . 1 Parts Lost 24 | . 5 19 Power 4 | . 1 3 Propulsion 6 | . 1 5 Utility 6 | . 1 5 Weapon 8 | . 2 6 Highest Loss Streak 6 | . 2 6 To Critical Strikes . | . . . Average Slot Usage (%) 88 | . 91 84 Engine 11 | . 13 9 Leg 7 | . . 17 Wheel 14 | . 22 4 Device 1 | . . 3 Storage 12 | . 14 11 Processor 1 | . . 3 Protection 12 | . 11 14 Energy Gun 12 | . 13 11 Energy Cannon 3 | . 6 . Ballistic Gun 2 | . 4 . Launcher 4 | . 3 5 Slashing Weapon 1 | . . 3 Naked Turns . | . . . Heaviest Build 57 | 13 57 57 Greatest Support 32 | 26 32 32 Greatest Overweight (x) 5 | . 3 5 Average Overweight (x) 1 | . 1 1 Largest Inventory Capacity 20 | 8 20 20 Average Capacity 19 | 6 19 20 Most Carried 17 | 5 9 17 Average Carried 8 | 2 6 10 Final Capacity 20 | 8 20 20 Final Carried 10 | 4 9 10 Class Distribution -------------------- 85% | Mutant 14% | Scavenger-Mutant Dominant Class ---------------- Mutant | -10/Materials Mutant | -9/Materials Resources | -11 -10 -9 ----------- Run | Scr Mat Mat Matter Collected 708 | 215 187 306 Remotely . | . . . Salvage Created 1416 | . 451 965 Parts 80 | . 18 62 Haulers Intercepted . | . . . Recyclers Shooed 3 | . 1 2 Parts Field Recycled . | . . . Retrieved Matter . | . . . Parts Self-Destructed . | . . . Prevented . | . . . Kills | -11 -10 -9 ------- Run | Scr Mat Mat Combat Hostiles Destroyed 37 | . 12 25 Melee 2 | . . 2 Guns 23 | . 8 15 Cannons 5 | . 2 3 AOE 7 | . 2 5 Classes Destroyed 8 | . 6 2 Worker 3 | . 1 2 Tunneler 1 | . 1 . Recycler 2 | . 1 1 Watcher 2 | . 2 . Swarmer 13 | . 5 8 Grunt 20 | . 7 13 Duelist 1 | . . 1 Sentry 3 | . . 3 Best Kill Streak 5 | . 3 5 Combat Bots Only 5 | . 3 5 Max Kills in Single Turn 2 | . 2 2 Gunslinging . | . . . Exploded 2 | . 2 2 Melee 1 | . . 1 Uniques/NPCs Destroyed . | . . . Combat | -11 -10 -9 -------- Run | Scr Mat Mat Damage Taken 2498 | . 770 1728 Core 550 | . 147 403 Absorbed by Shields . | . . . Redirected to Shielding 52 | . . 52 Core Remaining (%) 70 | 100 41 . Volleys Fired 177 | . 79 98 Largest 2 | . 2 2 Hottest 110 | . 110 110 Shots Fired 213 | . 101 112 Gun 180 | . 86 94 Cannon 25 | . 13 12 Launcher 8 | . 2 6 Special . | . . . Kinetic 12 | . 12 . Thermal 114 | . 87 27 Explosive 8 | . 2 6 Electromagnetic 79 | . . 79 Robot Hit Streak 10 | . 10 10 Robot Miss Streak 6 | . 5 6 Penetration Max . | . . . Secondary Targets . | . . . Shots Hit Robots 137 | . 62 75 Core Hits 70 | . 27 43 Critical Kills . | . . . Critical Parts Destroyed . | . . . Critical Strikes 10 | . 7 3 Burn 9 | . 7 2 Corrupt 1 | . . 1 Melee Attacks 4 | . . 4 Impact . | . . . Slashing 4 | . . 4 Piercing . | . . . Sneak Attacks . | . . . Combat Hostiles . | . . . Follow-up Attacks . | . . . Damage Inflicted 2714 | . 1271 1443 Guns 1474 | . 674 800 Cannons 296 | . 157 139 Explosions 846 | . 440 406 Melee 98 | . . 98 Ramming . | . . . Kinetic 64 | . 64 . Thermal 1292 | . 1032 260 Explosive 581 | . 175 406 Electromagnetic 679 | . . 679 Impact . | . . . Slashing 98 | . . 98 Piercing . | . . . Highest Corruption 5 | . . 5 Average Corruption 4 | . . 4 Corruption Purged . | . . . Corruption Blocked . | . . . Effects 26 | . . 26 Message Errors 7 | . . 7 Matter Fused 7 | . . 7 Heat Flow Errors 4 | . . 4 Parts Rejected 3 | . . 3 Data Loss (major) 1 | . . 1 Misfires 2 | . . 2 Alerts 1 | . . 1 Weapon Failures 1 | . . 1 Overload Shots . | . . . Overflow Damage 68 | . 58 10 Projectiles 10 | . . 10 Explosions 58 | . 58 . Melee . | . . . Knockbacks . | . . . Impact . | . . . Kinetic . | . . . Secondary . | . . . Self-Inflicted Damage 62 | . 62 . Shots 1 | . 1 . Rammed . | . . . Targets Rammed . | . . . Kicked . | . . . Crushed . | . . . Highest Temperature 345 | . 345 319 Average Temperature 98 | . 117 74 Received Heat Transfer 939 | . 321 618 Effects 4 | . 3 1 Energy Bleed 1 | . . 1 Interference 3 | . 3 . Siege Activations . | . . . Robots Corrupted . | . . . Combat Hostiles . | . . . Parts Fried 5 | . . 5 Impact Corruptions . | . . . Robots Melted . | . . . Combat Hostiles . | . . . Parts Melted 8 | . 5 3 Heat Transferred 3628 | . 2814 814 Parts Sabotaged . | . . . Parts Stolen . | . . . Parts Stripped . | . . . Power Chain Reactions . | . . . Missiles Intercepted . | . . . Alert | -11 -10 -9 ------- Run | Scr Mat Mat Peak Influence 350 | . 208 350 Initial 37 | . . 37 Average 148 | . 103 211 Maximum Alert Level 1 | . 1 1 Low Security (%) 65 | 100 86 38 Level 1 34 | . 13 61 Level 2 . | . . . Level 3 . | . . . Level 4 . | . . . Level 5 . | . . . High Security . | . . . Max Security . | . . . Squads Dispatched 6 | . 3 3 Investigation 3 | . . 3 Extermination . | . . . Reinforcement 3 | . 3 . Assault . | . . . Garrison . | . . . Intercept . | . . . Searches Triggered . | . . . Construction Impeded . | . . . Haulers Reinforced . | . . . Active Scanning Responses . | . . . Cargo Convoy Interrupts . | . . . Stealth | -11 -10 -9 --------- Run | Scr Mat Mat Distress Signals 4 | . 2 2 Communications Jammed . | . . . Distress Signals . | . . . Times Spotted 61 | . 28 33 Peak Tracking Total 8 | . 6 8 Tactical Retreats 1 | . . 1 Traps | -11 -10 -9 ------- Run | Scr Mat Mat Traps Triggered 4 | . 3 1 Indirectly . | . . . Trap Hack Attempts . | . . . Triggered . | . . . Disarmed . | . . . Reprogrammed . | . . . Reused . | . . . Traps Extracted . | . . . Installed . | . . . Triggered . | . . . Machines | -11 -10 -9 ---------- Run | Scr Mat Mat Machines Disabled 4 | . 2 2 Max in Single Turn 2 | . 2 1 Machines Sabotaged . | . . . Garrisons Compromised . | . . . Overloaded Fab Kills . | . . . Hacking | -11 -10 -9 --------- Run | Scr Mat Mat Machines Accessed 8 | . 2 6 Terminals 6 | . 1 5 Fabricators . | . . . Repair Stations . | . . . Recycling Units 1 | . 1 . Scanalyzers 1 | . . 1 Garrison Access . | . . . Total Hacks 20 | . 2 18 Successful 16 | . 2 14 Failed 4 | . . 4 Catastrophic . | . . . Database Lockouts . | . . . Manual . | . . . Terminals 18 | . 1 17 Fabricators . | . . . Repair Stations . | . . . Recycling Units 1 | . 1 . Scanalyzers 1 | . . 1 Garrison Access . | . . . Terminal Hacks 15 | . 1 14 Record 4 | . 1 3 Prototype ID Bank 1 | . . 1 Emergency Access Points 3 | . . 3 Terminal Index 1 | . . 1 Alert Level 1 | . . 1 Locate Traps 2 | . . 2 Maintenance Status 1 | . . 1 Zone Layout 2 | . . 2 Fabricator Hacks . | . . . Repair Station Hacks . | . . . Recycling Unit Hacks 1 | . 1 . Report Inventory 1 | . 1 . Scanalyzer . | . . . Garrison Access Hacks . | . . . Unauthorized Hacks . | . . . Terminals . | . . . Fabricators . | . . . Repair Stations . | . . . Recycling Units . | . . . Scanalyzers . | . . . Garrison Access . | . . . Data Cores Recovered . | . . . Used . | . . . Hacking Detections 6 | . 1 5 Full Trace Events 3 | . . 3 Feedback Events . | . . . Feedback Blocked . | . . . Robot Schematics Acquired . | . . . Robots Built . | . . . Authchips . | . . . Time . | . . . Total Robot Build Rating . | . . . Part Schematics Acquired . | . . . Parts Built . | . . . Authchips . | . . . Time . | . . . Total Part Build Rating . | . . . Parts Repaired . | . . . Time . | . . . Parts Recycled . | . . . Recycled Matter . | . . . Retrieved Matter . | . . . Retrieved Components . | . . . Parts Scanalyzed . | . . . Part Schematics Acquired . | . . . Parts Damaged . | . . . Bothacking | -11 -10 -9 ------------ Run | Scr Mat Mat Used RIF Installer . | . . . Robots Hacked . | . . . Non-combat . | . . . Combat . | . . . Robot Hacks Applied . | . . . Relay Couplers Released . | . . . Fabnet Peak Effective % . | . . . Robots Rewired . | . . . Allies Hacked . | . . . Hacks Repelled . | . . . Allies | -11 -10 -9 -------- Run | Scr Mat Mat Total Allies . | . . . Largest Group . | . . . Highest-Rated Group . | . . . Highest-Rated Ally . | . . . Total Orders . | . . . Ally Attacks . | . . . Total Damage . | . . . Kills . | . . . Allies Corrupted . | . . . Allies Melted . | . . . Intel | -11 -10 -9 ------- Run | Scr Mat Mat Robot Analysis Total . | . . . Derelict Logs Recovered . | . . . Drone Launches . | . . . Drone Recoveries . | . . . Exploration | -11 -10 -9 ------------- Run | Scr Mat Mat Turns Passed 2359 | 59 1258 1042 Spaces Moved 1259 | 49 852 358 Core 1 | 1 . . Treads . | . . . Legs 244 | . . 244 Wheels 1014 | 48 852 114 Hover . | . . . Flight . | . . . Fastest Speed 50 | 50 90 115 Average Speed 147 | 88 122 215 Slowest Speed 470 | 90 145 470 Overloaded Moves . | . . . Propulsion Burnouts . | . . . Robots Hopped . | . . . Cave-ins Triggered . | . . . Exploration Rate (%) 46 | 3 99 38 Regions Visited 2 Branch Regions . Pre-discovered Areas . | . . . Known Exits Taken . | . . . Unknown Exits Taken 2 | 1 1 . Scrap Searched . | . . . Spaces Dug . | . . . Terrain Destroyed 56 | . 44 12 Melee . | . . . Projectile . | . . . AOE 56 | . 44 12 Terrain Rammed . | . . . Walls Destroyed . | . . . Machines Disabled . | . . . Actions | -11 -10 -9 --------- Run | Scr Mat Mat Total 1542 | 64 965 513 Wait 4 | . 4 . Move 1257 | 48 851 358 Hop . | . . . Pick Up 51 | 10 17 24 Fast Attach . | . . . Attach 40 | 6 11 23 Detach . | . . . Swap 6 | . 2 4 Drop 3 | . 1 2 Fire 177 | . 79 98 Melee 4 | . . 4 Ram . | . . . Kick . | . . . Crush . | . . . Escape Stasis . | . . . Rewire . | . . . Trap . | . . . Miscellaneous . | . . . Route ------- -11/Scrapyard -10/Materials (discovered 4 exits: *Mat x3 / [*Min]) -9/Materials (discovered 2 exits: [*Mat] / [Min]) History --------- Turn | Location | Event 10 | -11/Scrapyard | Discovered new exit (range 16) 60 | -11/Scrapyard | Entered Materials 308 | -10/Materials | Build established: Mutant 559 | -10/Materials | Discovered new exit (range 6) 797 | -10/Materials | Discovered new exit (range 7) 936 | -10/Materials | Core integrity fell below 50% 1099 | -10/Materials | Discovered new exit (range 6) 1297 | -10/Materials | Discovered new exit (range 4) 1318 | -10/Materials | Entered another Materials area 1318 | -9/Materials | Evolved 2 slots: Utility x2 1503 | -9/Materials | Discovered new exit (range 5) 1579 | -9/Materials | Core integrity fell below 50% 1605 | -9/Materials | Lost 6 parts (1p2n1u2w) 2271 | -9/Materials | Discovered new exit (range 12) 2287 | -9/Materials | Build established: Scavenger-Mutant 2299 | -9/Materials | Core integrity fell below 20% 2360 | -9/Materials | Destroyed by S-10 Pest with Light Assault Rifle Last Messages --------------- System corrupted: EM Pulse Gun misfires. S-10 Pest destroyed. T-07 Excavator is excavating. Aluminum Leg destroyed. U-05 Engineer lays Concrete. R-06 Scavenger collects Corrupted Lgt. Assault Rifle. S-10 Pest destroyed. R-06 Scavenger collects Flight Unit. S-10 Pest destroyed. R-06 Scavenger collects Corrupted Lgt. Assault Rifle. S-10 Pest destroyed. Acquired 18 matter. Acquired 2 matter. C-30 ARC bursts open, deploying its payload. S-10 Pest unfolds itself. S-10 Pest destroyed. Aluminum Leg destroyed. EM Pulse Gun destroyed. System corrupted: Matter fused (-5). Beam Cannon destroyed. Map ----- +----------------------------------------------------+ | ???????????????????# # ## | | ???????????????????# = + ## | | ???????????????????# # ## | | ???????????????????# # ## | | ???????????????????# "T" # ## | | ???????????????????# """ # ## | | ??????##+#?????????##+##### ## | | ?????? " ??????????# #???# | | ??????"%= ??????????# #???# ## | | ?????? %=#?????????# #???# ## | | ??????# +?????????# #???# ## | | ??????# #?????????# #???# ## | | ??????# r #?????????# #???# ## | | ??????#ss #?????????# #???# ## | | ??????# s#?????????# #???# ## | | ??????" #?????????# #???# ## | | ??????# #?????????# #???# ## | | ??????+ ########### #???# ## | | ??????# u # ##%#???# ## | | ??????# # """ ## #???# ## | | ??????# # """ ##%##### ## | | ??????# # """ [ ## # | | ??????# # + # | | ??????# %# """ "" ## # | | ??????#% %# """ Y" ## ## # | | ??????#@ # """ "" ## ## | | ??????# # ## ## !!// | | ??????# ###+####### ## !// | | ??????# ######## | | ??????+ #??????? | | ??????# #??????? | | ??????# ### ######+####??????? | | ??????# #? ????????#??????? | | ??????# < #? #???????#??????? | | ??????# #?### #???????#??????? | | ??????#####?????#???????#??????? | | ????????????????????????#??????? | | ????????????????????????#??????? | | ????????????????????????#??????? | | ???????????????????????????????? | | ???????????????????????????????? | | ???????????????????????????????? | | ???????????????????????????????? | | ???????????????????????????????? | | ???????????????????????????????? | | ???????????????????????????????? | | | | | | | | | +----------------------------------------------------+ Best States ------------- Heat Dissipation 28 Energy Generation 10 Energy Capacity 250 Matter Stores 300 Matter Capacity 300 Sight Range 16 Terrain Scan Range 14 Terrain Scan Density 85 Armor Coverage 300 Propulsion Shielding 33 Evasion (%) 42 Item Schematics ----------------- None Robot Schematics ------------------ None Fabricated ------------ Nothing Alien Tech Used ----------------- None Achievements -------------- Crack Shot Risk Taker Challenges ------------ None Game ------ Seed CompactSurgeEdition Manual? 0 Play Time 00:52:28 Cumulative 4.8 hours Start 2022.05.31 @ 20:15:29 End 2022.05.31 @ 21:09:37 Sessions 1 Manual Loads 0 Difficulty Rogue Special Mode None Game No. 4 Rogue 4 Adventurer 0 Explorer 0 Win Type - Total 0 Types 0/0/0/0/0/0/0/0/0 Lore% 1 Gallery% 3 Achievement% 5 Wizard Run 0 Options --------- ASCII 0 Keyboard 0 Movement Mouse Keybinds 0 Fullscreen 1 Font 36/TerminusFine Map View 76x50 Tactical HUD 0 Map Filters NONE Filters NONE Steam 1 RUN: 529492ae-b061-4178-9548-770e482ca26c